fUSD/lending_fUSD_20240412
["ID","MTS","AMOUNT","RATE_DAILY","PERIOD"]
[322241629,1712910659557,-1484.06,0.00029041,2]
[322241630,1712910659566,-6871.46,0.00029041,2]
[322241631,1712910659574,-1564.17,0.00029041,2]
[322241632,1712910659585,-153.82382248,0.00029059,2]
[322241633,1712910659594,-153.82382248,0.00029073,2]
[322241634,1712910659604,-152.06887318,0.0002909,2]
[322241635,1712910659614,-1829.35,0.00029123,2]
[322241636,1712910659623,-1234.79344626,0.0002921,2]
[322241637,1712910659632,-153.32512064,0.00029212,2]
[322241638,1712910659642,-287.5967218,0.00029215,2]
[322241639,1712910659651,-262.94782375,0.00029215,2]
[322241640,1712910659661,-828.27923644,0.00029215,2]
[322241641,1712910659670,-1391.91307396,0.00029215,2]
[322241642,1712910659680,-1178.92674415,0.00029287,2]
[322241643,1712910659689,-839.13,0.00029292,2]
[322241644,1712910659699,-156.64160943,0.00029298,2]
[322241645,1712910659708,-500.0,0.00029314,2]
[322241646,1712910659718,-500.0,0.00029314,2]
[322241647,1712910659727,-500.0,0.00029315,2]
[322241648,1712910659736,-500.0,0.00029315,2]
[322241649,1712910659746,-500.0,0.00029315,2]
[322241650,1712910659756,-500.0,0.00029315,2]
[322241651,1712910659765,-500.0,0.00029315,2]
[322241652,1712910659774,-500.0,0.00029315,2]
[322241653,1712910659784,-500.0,0.00029315,2]
[322241654,1712910659793,-756.63,0.00029315,2]
[322241655,1712910659802,-151.0,0.00029315,7]
[322241656,1712910659812,-151.0,0.00029315,7]
[322241657,1712910659822,-213.29588592,0.00029315,2]
[322241658,1712910659831,-500.0,0.00029315,2]
[322241659,1712910659840,-500.0,0.00029315,2]
[322241660,1712910659851,-500.0,0.00029315,2]
[322241661,1712910659862,-500.0,0.00029315,2]
[322241662,1712910659872,-150.0,0.00029315,2]
[322241663,1712910659881,-500.0,0.00029315,2]
[322241664,1712910659891,-500.0,0.00029315,2]
[322241665,1712910659900,-500.0,0.00029315,2]
[322241666,1712910659910,-500.0,0.00029315,2]
[322241667,1712910659920,-446.00297223,0.00029315,2]
[322241668,1712910659930,-500.0,0.00029315,2]
[322241669,1712910659939,-869.58,0.00029315,2]
[322241670,1712910659949,-509.23,0.00029315,2]
[322241671,1712910659959,-503.47,0.00029315,2]
[322241672,1712910659968,-500.0,0.00029315,2]
[322241673,1712910659978,-405.55202458,0.00029315,2]
[322241674,1712910659987,-500.0,0.00029315,2]
[322241675,1712910659997,-500.0,0.00029315,2]
[322241676,1712910660006,-500.0,0.00029315,2]
[322241677,1712910660015,-500.0,0.00029315,2]
[322241678,1712910660026,-500.0,0.00029315,2]
[322241679,1712910660035,-500.0,0.00029315,2]
[322241680,1712910660045,-500.0,0.00029315,2]
[322241681,1712910660055,-500.0,0.00029315,2]
[322241682,1712910660065,-1051.09,0.00029315,2]
[322241683,1712910660075,-581.78,0.00029315,2]
[322241684,1712910660085,-955.26,0.00029315,2]
[322241685,1712910660094,-1086.38,0.00029315,2]
[322241686,1712910660105,-500.0,0.00029315,2]
[322241687,1712910660116,-1440.94,0.00029315,2]
[322241688,1712910660125,-15881.78,0.00029315,2]
[322241689,1712910660135,-500.0,0.00029315,2]
[322241690,1712910660145,-500.0,0.00029315,2]
[322241691,1712910660155,-2268.83,0.00029315,2]
[322241692,1712910660165,-1118.92,0.00029315,2]
[322241693,1712910660176,-500.0,0.00029315,2]
[322241694,1712910660185,-500.0,0.00029315,2]
[322241695,1712910660194,-635.62,0.00029315,2]
[322241696,1712910660204,-500.0,0.00029315,2]
[322241697,1712910660215,-361.85729019,0.00029315,2]
[322241698,1712910660225,-1073.25,0.00029315,2]
[322241699,1712910660236,-670.16,0.00029315,2]
[322241700,1712910660246,-628.69,0.00029315,2]
[322241701,1712910660255,-888.45,0.00029315,2]
[322241702,1712910660265,-1644.72,0.00029315,2]
[322241703,1712910660275,-2054.82,0.00029315,2]
[322241704,1712910660284,-794.28,0.00029315,2]
[322241705,1712910660294,-500.0,0.00029315,2]
[322241706,1712910660304,-504.05,0.00029315,2]
[322241707,1712910660314,-2423.68,0.00029315,2]
[322241708,1712910660323,-5075.03,0.00029315,2]
[322241709,1712910660333,-500.0,0.00029315,2]
[322241710,1712910660344,-500.0,0.00029315,2]
[322241711,1712910660355,-769.18,0.00029315,2]
[322241712,1712910660366,-500.0,0.00029315,2]
[322241713,1712910660377,-1718.02,0.00029315,2]
[322241714,1712910660387,-500.0,0.00029315,2]
[322241715,1712910660399,-500.0,0.00029315,2]
[322241716,1712910660410,-707.32,0.00029315,2]
[322241717,1712910660419,-500.0,0.00029315,2]
[322241718,1712910660429,-500.0,0.00029315,2]
[322241719,1712910660439,-511.65,0.00029315,2]
[322241720,1712910660449,-1023.69,0.00029315,2]
[322241721,1712910660459,-500.0,0.00029315,2]
[322241722,1712910660468,-500.0,0.00029315,2]
[322241723,1712910660478,-1513.61,0.00029315,2]
[322241724,1712910660487,-500.0,0.00029315,2]
[322241725,1712910660497,-661.27,0.00029315,2]
[322241726,1712910660506,-500.0,0.00029315,2]
[322241727,1712910660516,-500.0,0.00029315,2]
[322241728,1712910660526,-500.0,0.00029315,2]
[322241729,1712910660536,-1518.69,0.00029315,2]
[322241730,1712910660545,-500.0,0.00029315,2]
[322241731,1712910660555,-500.0,0.00029315,2]
[322241732,1712910660565,-1734.28,0.00029315,2]
[322241733,1712910660575,-1888.52,0.00029315,2]
[322241734,1712910660585,-500.0,0.00029315,2]
[322241735,1712910660595,-845.6,0.00029315,2]
[322241736,1712910660606,-325.47640574,0.00029315,2]
[322241737,1712910660615,-1147.94,0.00029315,2]
[322241738,1712910660626,-500.0,0.00029315,2]
[322241739,1712910660636,-968.6,0.00029315,2]
[322241740,1712910660647,-901.52,0.00029315,2]
[322241741,1712910660657,-500.0,0.00029315,2]
[322241742,1712910660668,-5229.28,0.00029315,2]
[322241743,1712910660678,-500.0,0.00029315,2]
[322241744,1712910660690,-1792.89,0.00029315,2]
[322241745,1712910660699,-500.0,0.00029315,2]
[322241746,1712910660710,-763.08,0.00029315,2]
[322241747,1712910660720,-715.29,0.00029315,2]
[322241748,1712910660729,-742.43,0.00029315,2]
[322241749,1712910660738,-676.83,0.00029315,2]
[322241750,1712910660749,-500.0,0.00029315,2]
[322241751,1712910660758,-1122.17,0.00029315,2]
[322241752,1712910660768,-775.54,0.00029315,2]
[322241753,1712910660777,-500.0,0.00029315,2]
[322241754,1712910660786,-500.0,0.00029315,2]
[322241755,1712910660796,-1457.02,0.00029315,2]
[322241756,1712910660806,-927.26,0.00029315,2]
[322241757,1712910660818,-672.74,0.00029315,2]
[322241758,1712910660828,-2171.71,0.00029315,2]
[322241759,1712910660838,-1750.71,0.00029315,2]
[322241760,1712910660849,-4894.56,0.00029315,2]
[322241761,1712910660863,-1617.03,0.00029315,2]
[322241762,1712910660873,-2386.31,0.00029315,2]
[322241763,1712910660883,-869.45,0.00029315,2]
[322241764,1712910660893,-1606.73,0.00029315,2]
[322241765,1712910660903,-2232.46,0.00029315,2]
[322241766,1712910660913,-1566.09,0.00029315,2]
[322241767,1712910660923,-1551.51,0.00029315,2]
[322241768,1712910660932,-500.0,0.00029315,2]
[322241769,1712910660942,-904.67,0.00029315,2]
[322241770,1712910660952,-1349.22,0.00029315,2]
[322241771,1712910660961,-500.0,0.00029315,2]
[322241772,1712910660971,-758.58,0.00029315,2]
[322241773,1712910660980,-790.55,0.00029315,2]
[322241774,1712910660990,-1078.88,0.00029315,2]
[322241775,1712910661000,-500.0,0.00029315,2]
[322241776,1712910661009,-2788.66,0.00029315,2]
[322241777,1712910661019,-500.0,0.00029315,2]
[322241778,1712910661028,-1484.06,0.00029315,2]
[322241779,1712910661038,-6871.46,0.00029315,2]
[322241780,1712910661048,-1564.17,0.00029315,2]
[322241781,1712910661058,-152.701849,0.00029315,14]
[322241782,1712910661067,-648.6245,0.0002932,2]
[322241783,1712910661077,-154.09758038,0.00029351,2]
[322241784,1712910661087,-155.6033092,0.00029467,2]
[322241785,1712910661096,-1234.79344626,0.00029479,2]
[322241786,1712910661106,-454.80194206,0.00029487,16]
[322241787,1712910661116,-441.09329125,0.000295,3]
[322241788,1712910661125,-150.0,0.00029534,2]
[322241789,1712910661135,-623.74,0.00029534,2]
[322241790,1712910661145,-154.65,0.00029534,2]
[322241791,1712910661154,-769.68,0.00029534,2]
[322241792,1712910661163,-306.57,0.00029534,2]
[322241793,1712910661173,-418.16,0.00029534,2]
[322241794,1712910661182,-418.16,0.00029534,2]
[322241795,1712910661192,-520.86,0.00029534,2]
[322241796,1712910661201,-150.0,0.00029534,2]
[322241797,1712910661211,-417.14,0.00029534,2]
[322241798,1712910661220,-150.0,0.00029534,2]
[322241799,1712910661230,-520.86,0.00029534,2]
[322241800,1712910661239,-520.86,0.00029534,2]
[322241801,1712910661249,-150.5,0.00029557,15]
[322241802,1712910661259,-150.5,0.00029567,15]
[322241803,1712910661268,-150.5,0.00029577,15]
[322241804,1712910661278,-500.0,0.00029585,2]
[322241805,1712910661288,-500.0,0.00029586,2]
[322241806,1712910661298,-500.0,0.00029586,2]
[322241807,1712910661308,-500.0,0.00029586,2]
[322241808,1712910661318,-500.0,0.00029586,2]
[322241809,1712910661329,-500.0,0.00029586,2]
[322241810,1712910661339,-500.0,0.00029586,2]
[322241811,1712910661349,-500.0,0.00029586,2]
[322241812,1712910661359,-393.81619522,0.00029586,2]
[322241813,1712910661368,-500.0,0.00029586,2]
[322241814,1712910661378,-500.0,0.00029586,2]
[322241815,1712910661387,-500.0,0.00029586,2]
[322241816,1712910661397,-500.0,0.00029586,2]
[322241817,1712910661407,-500.0,0.00029586,2]
[322241818,1712910661416,-500.0,0.00029586,2]
[322241819,1712910661426,-500.0,0.00029586,2]
[322241820,1712910661435,-500.0,0.00029586,2]
[322241821,1712910661445,-500.0,0.00029586,2]
[322241822,1712910661455,-500.0,0.00029586,2]
[322241823,1712910661465,-546.0964668,0.00029586,2]
[322241824,1712910661474,-736089.56897548,0.00029587,2]
[322241825,1712910661854,-411418.99629699,0.00029587,2]
[322241826,1712910661868,-1168.32361219,0.00029587,2]
[322241827,1712910661880,-330.488,0.00029587,2]
[322241828,1712910661893,-22791.76757059,0.00029587,2]
[322241829,1712910661904,-28259.8118224,0.00029587,2]
[322241830,1712910661913,-151.0,0.00029587,7]
[322241831,1712910661923,-151.0,0.00029587,7]
[322241832,1712910661932,-500.0,0.00029589,2]
[322241833,1712910661942,-500.0,0.00029589,2]
[322241834,1712910661951,-165.10189722,0.00029589,2]
[322241835,1712910661960,-500.0,0.00029589,2]
[322241836,1712910661969,-449.35613128,0.00029589,2]
[322241837,1712910661978,-500.0,0.00029589,2]
[322241838,1712910661987,-500.0,0.00029589,2]
[322241839,1712910661997,-756.63,0.00029589,2]
[322241840,1712910662008,-500.0,0.00029589,2]
[322241841,1712910662017,-500.0,0.00029589,2]
[322241842,1712910662026,-500.0,0.00029589,2]
[322241843,1712910662035,-500.0,0.00029589,2]
[322241844,1712910662044,-150.0,0.00029589,2]
[322241845,1712910662054,-323.88104087,0.00029589,2]
[322241846,1712910662063,-500.0,0.00029589,2]
[322241847,1712910662072,-500.0,0.00029589,2]
[322241848,1712910662082,-500.0,0.00029589,2]
[322241849,1712910662091,-500.0,0.00029589,2]
[322241850,1712910662100,-869.58,0.00029589,2]
[322241851,1712910662109,-509.23,0.00029589,2]
[322241852,1712910662118,-503.47,0.00029589,2]
[322241853,1712910662127,-500.0,0.00029589,2]
[322241854,1712910662137,-500.0,0.00029589,2]
[322241855,1712910662146,-500.0,0.00029589,2]
[322241856,1712910662154,-500.0,0.00029589,2]
[322241857,1712910662164,-500.0,0.00029589,2]
[322241858,1712910662173,-500.0,0.00029589,2]
[322241859,1712910662182,-500.0,0.00029589,2]
[322241860,1712910662191,-379.97228589,0.00029589,2]
[322241861,1712910662200,-500.0,0.00029589,2]
[322241862,1712910662210,-1051.09,0.00029589,2]
[322241863,1712910662219,-581.78,0.00029589,2]
[322241864,1712910662228,-955.26,0.00029589,2]
[322241865,1712910662237,-1086.38,0.00029589,2]
[322241866,1712910662247,-500.0,0.00029589,2]
[322241867,1712910662257,-1440.94,0.00029589,2]
[322241868,1712910662266,-15881.78,0.00029589,2]
[322241869,1712910662275,-500.0,0.00029589,2]
[322241870,1712910662284,-500.0,0.00029589,2]
[322241871,1712910662293,-2268.83,0.00029589,2]
[322241872,1712910662303,-1118.92,0.00029589,2]
[322241873,1712910662313,-500.0,0.00029589,2]
[322241874,1712910662324,-500.0,0.00029589,2]
[322241875,1712910662335,-500.0,0.00029589,2]
[322241876,1712910662345,-509.10201186,0.00029589,2]
[322241877,1712910662358,-126.51798814,0.00029589,2]
[322241878,1712910662369,-1073.25,0.00029589,2]
[322241879,1712910662378,-670.16,0.00029589,2]
[322241880,1712910662389,-628.69,0.00029589,2]
[322241881,1712910662399,-134.10302559,0.00029589,2]
[322241882,1712910662416,-754.34697441,0.00029589,2]
[322241883,1712910662424,-1644.72,0.00029589,2]
[322241884,1712910662434,-2054.82,0.00029589,2]
[322241885,1712910662443,-794.28,0.00029589,2]
[322241886,1712910662453,-500.0,0.00029589,2]
[322241887,1712910662462,-504.05,0.00029589,2]
[322241888,1712910662471,-2423.68,0.00029589,2]
[322241889,1712910662480,-622.3375134,0.00029589,2]
[322241890,1712910662493,-860.87625385,0.00029589,2]
[322241891,1712910662510,-3591.81623275,0.00029589,2]
[322241892,1712910662519,-500.0,0.00029589,2]
[322241893,1712910662528,-500.0,0.00029589,2]
[322241894,1712910662538,-769.18,0.00029589,2]
[322241895,1712910662547,-500.0,0.00029589,2]
[322241896,1712910662556,-1718.02,0.00029589,2]
[322241897,1712910662566,-500.0,0.00029589,2]
[322241898,1712910662575,-500.0,0.00029589,2]
[322241899,1712910662585,-707.32,0.00029589,2]
[322241900,1712910662594,-500.0,0.00029589,2]
[322241901,1712910662604,-500.0,0.00029589,2]
[322241902,1712910662614,-511.65,0.00029589,2]
[322241903,1712910662623,-1023.69,0.00029589,2]
[322241904,1712910662632,-500.0,0.00029589,2]
[322241905,1712910662642,-500.0,0.00029589,2]
[322241906,1712910662652,-1003.52376725,0.00029589,2]
[322241907,1712910663038,-510.08623275,0.00029589,2]
[322241908,1712910663048,-500.0,0.00029589,2]
[322241909,1712910663058,-661.27,0.00029589,2]
[322241910,1712910663068,-500.0,0.00029589,2]
[322241911,1712910663077,-500.0,0.00029589,2]
[322241912,1712910663087,-500.0,0.00029589,2]
[322241913,1712910663097,-1518.69,0.00029589,2]
[322241914,1712910663107,-500.0,0.00029589,2]
[322241915,1712910663116,-500.0,0.00029589,2]
[322241916,1712910663127,-1734.28,0.00029589,2]
[322241917,1712910663137,-1888.52,0.00029589,2]
[322241918,1712910663147,-500.0,0.00029589,2]
[322241919,1712910663156,-845.6,0.00029589,2]
[322241920,1712910663167,-1147.94,0.00029589,2]
[322241921,1712910663177,-500.0,0.00029589,2]
[322241922,1712910663187,-968.6,0.00029589,2]
[322241923,1712910663197,-901.52,0.00029589,2]
[322241924,1712910663207,-500.0,0.00029589,2]
[322241925,1712910663217,-5229.28,0.00029589,2]
[322241926,1712910663227,-500.0,0.00029589,2]
[322241927,1712910663237,-1792.89,0.00029589,2]
[322241928,1712910663248,-500.0,0.00029589,2]
[322241929,1712910663261,-715.29,0.00029589,2]
[322241930,1712910663270,-763.08,0.00029589,2]
[322241931,1712910663280,-742.43,0.00029589,2]
[322241932,1712910663290,-676.83,0.00029589,2]
[322241933,1712910663300,-500.0,0.00029589,2]
[322241934,1712910663311,-1122.17,0.00029589,2]
[322241935,1712910663321,-775.54,0.00029589,2]
[322241936,1712910663333,-500.0,0.00029589,2]
[322241937,1712910663343,-500.0,0.00029589,2]
[322241938,1712910663353,-1457.02,0.00029589,2]
[322241939,1712910663362,-927.26,0.00029589,2]
[322241940,1712910663371,-672.74,0.00029589,2]
[322241941,1712910663381,-2171.71,0.00029589,2]
[322241942,1712910663390,-1750.71,0.00029589,2]
[322241943,1712910663400,-4894.56,0.00029589,2]
[322241944,1712910663409,-1617.03,0.00029589,2]
[322241945,1712910663420,-2386.31,0.00029589,2]
[322241946,1712910663431,-869.45,0.00029589,2]
[322241947,1712910663441,-1606.73,0.00029589,2]
[322241948,1712910663451,-2232.46,0.00029589,2]
[322241949,1712910663461,-1566.09,0.00029589,2]
[322241950,1712910663471,-1551.51,0.00029589,2]
[322241951,1712910663480,-500.0,0.00029589,2]
[322241952,1712910663489,-904.67,0.00029589,2]
[322241953,1712910663498,-1349.22,0.00029589,2]
[322241954,1712910663509,-635.75219129,0.00029589,2]
[322241955,1712910663520,-758.58,0.00029589,2]
[322241956,1712910663530,-790.55,0.00029589,2]
[322241957,1712910663539,-1078.88,0.00029589,2]
[322241958,1712910663549,-500.0,0.00029589,2]
[322241959,1712910663560,-2788.66,0.00029589,2]
[322241960,1712910663570,-500.0,0.00029589,2]
[322241961,1712910663580,-1484.06,0.00029589,2]
[322241962,1712910663588,-3074.94443337,0.00029589,2]
[322241963,1712910663607,-3796.51556663,0.00029589,2]
[322241964,1712910663617,-1564.17,0.00029589,2]
[322241965,1712910663627,-168.79040145,0.00029599,4]
[322241966,1712910663637,-447.93,0.000296,2]
[322241967,1712910663647,-150.73908605,0.00029641,2]
[322241968,1712910663656,-3565.279,0.00029658,2]
[322241969,1712910663666,-150.315,0.00029658,2]
[322241970,1712910663675,-154.09758038,0.00029701,2]
[322241971,1712910663685,-153.82382248,0.00029743,2]
[322241972,1712910663694,-1234.79344626,0.00029748,2]
[322241973,1712910663703,-157.59573881,0.00029805,2]
[322241974,1712910663713,-1178.92674415,0.0002981,2]
[322241975,1712910663722,-500.0,0.00029862,2]
[322241976,1712910663733,-500.0,0.00029863,2]
[322241977,1712910663742,-500.0,0.00029863,2]
[322241978,1712910663751,-500.0,0.00029863,2]
[322241979,1712910663761,-500.0,0.00029863,2]
[322241980,1712910663771,-500.0,0.00029863,2]
[322241981,1712910663781,-756.63,0.00029863,2]
[322241982,1712910663792,-151.0,0.00029863,7]
[322241983,1712910663801,-151.0,0.00029863,7]
[322241984,1712910663811,-500.0,0.00029863,2]
[322241985,1712910663823,-500.0,0.00029863,2]
[322241986,1712910663834,-500.0,0.00029863,2]
[322241987,1712910663844,-488.14,0.00029863,2]
[322241988,1712910663854,-208.6980919,0.00029863,2]
[322241989,1712910663866,-500.0,0.00029863,2]
[322241990,1712910663876,-500.0,0.00029863,2]
[322241991,1712910663885,-500.0,0.00029863,2]
[322241992,1712910663894,-500.0,0.00029863,2]
[322241993,1712910663903,-869.58,0.00029863,2]
[322241994,1712910663913,-509.23,0.00029863,2]
[322241995,1712910663922,-503.47,0.00029863,2]
[322241996,1712910663932,-500.0,0.00029863,2]
[322241997,1712910663941,-500.0,0.00029863,2]
[322241998,1712910663951,-500.0,0.00029863,2]
[322241999,1712910663960,-500.0,0.00029863,2]
[322242000,1712910663969,-500.0,0.00029863,2]
[322242001,1712910663980,-500.0,0.00029863,2]
[322242002,1712910663989,-500.0,0.00029863,2]
[322242003,1712910663999,-500.0,0.00029863,2]
[322242004,1712910664010,-581.78,0.00029863,2]
[322242005,1712910664019,-955.26,0.00029863,2]
[322242006,1712910664029,-1086.38,0.00029863,2]
[322242007,1712910664039,-289.93647345,0.00029863,2]
[322242008,1712910664048,-1440.94,0.00029863,2]
[322242009,1712910664058,-15881.78,0.00029863,2]
[322242010,1712910664067,-500.0,0.00029863,2]
[322242011,1712910664077,-500.0,0.00029863,2]
[322242012,1712910664087,-1118.92,0.00029863,2]
[322242013,1712910664097,-500.0,0.00029863,2]
[322242014,1712910664106,-500.0,0.00029863,2]
[322242015,1712910664116,-500.0,0.00029863,2]
[322242016,1712910664126,-635.62,0.00029863,2]
[322242017,1712910664135,-1073.25,0.00029863,2]
[322242018,1712910664146,-670.16,0.00029863,2]
[322242019,1712910664156,-628.69,0.00029863,2]
[322242020,1712910664204,-888.45,0.00029863,2]
[322242021,1712910664213,-957.64799022,0.00029863,2]
[322242022,1712910664227,-501.31477591,0.00029863,2]
[322242023,1712910686948,252.10548691,0.0003,30]
[322242024,1712910962937,-362.61358032,0.00025297,2]
[322242025,1712910962963,-1798.25641968,0.00025298,2]
[322242026,1712911414200,25000.0,0.00034188,30]
[322242027,1712911497303,25000.0,0.00034188,30]
[322242028,1712911571860,25000.0,0.00034188,30]
[322242032,1712911682593,25000.0,0.00034188,30]
[322242041,1712911822357,350.0,0.00021,3]
[322242087,1712911838487,-400.0,0.00023,3]
[322242089,1712911838498,-713.26,0.00024624,2]
[322242092,1712911838510,-545.69787889,0.00024999,2]
[322242094,1712911838519,-1357.41300212,0.00025298,2]
[322242096,1712911838528,-1596.7498,0.00026437,2]
[322242098,1712911838538,-230.4,0.0002644,2]
[322242100,1712911838547,-250.0,0.00026452,2]
[322242102,1712911838557,-1702.07,0.00026496,2]
[322242104,1712911838566,-769.6,0.00026533,2]
[322242106,1712911838575,-150.0,0.00026536,2]
[322242108,1712911838585,-150.0,0.00026536,2]
[322242110,1712911838594,-354.0,0.00026537,2]
[322242112,1712911838604,-3397.353,0.00026537,2]
[322242114,1712911838614,-351.101,0.00026537,2]
[322242116,1712911838623,-165.78,0.00026735,2]
[322242118,1712911838633,-713.26,0.00026888,2]
[322242120,1712911838642,-2275.2102,0.00027197,2]
[322242122,1712911838652,-1819.0697,0.00027296,2]
[322242124,1712911838663,-1220.0196,0.00027296,2]
[322242126,1712911838672,-1060.2,0.00027297,2]
[322242129,1712911838682,-22331.8303,0.00027297,2]
[322242131,1712911838691,-367.60439196,0.00027297,3]
[322242133,1712911838701,-554.70551393,0.00027297,2]
[322242135,1712911838710,-154.67867002,0.00027337,2]
[322242136,1712911838720,-363.46482361,0.00027396,2]
[322242139,1712911838730,-501.77354759,0.00027397,2]
[322242141,1712911838739,-500.0,0.00027397,2]
[322242143,1712911838749,-439.16995933,0.00027397,2]
[322242145,1712911838761,-500.0,0.00027397,2]
[322242147,1712911838771,-501.79103453,0.00027397,2]
[322242149,1712911838780,-431.25016338,0.00027397,2]
[322242151,1712911838790,-500.0,0.00027397,2]
[322242153,1712911838799,-643.362851,0.00027397,2]
[322242154,1712911838808,-513.48984927,0.00027397,2]
[322242155,1712911838818,-500.0,0.00027397,2]
[322242156,1712911838828,-500.0,0.00027397,2]
[322242157,1712911838837,-500.0,0.00027397,2]
[322242158,1712911838847,-500.0,0.00027397,2]
[322242159,1712911838857,-537.75678544,0.00027397,2]
[322242160,1712911838867,-500.0,0.00027397,2]
[322242161,1712911838877,-500.0,0.00027397,2]
[322242162,1712911838886,-500.0,0.00027397,2]
[322242163,1712911838896,-500.0,0.00027397,2]
[322242164,1712911838905,-509.21936118,0.00027397,2]
[322242166,1712911838916,-500.0,0.00027397,2]
[322242168,1712911838925,-500.0,0.00027397,2]
[322242170,1712911838935,-500.0,0.00027397,2]
[322242172,1712911838944,-271.75683042,0.00027397,2]
[322242174,1712911838953,-500.0,0.00027397,2]
[322242176,1712911838963,-500.0,0.00027397,2]
[322242179,1712911838974,-500.0,0.00027397,2]
[322242181,1712911838986,-500.0,0.00027397,2]
[322242183,1712911838995,-526.97159416,0.00027397,2]
[322242185,1712911839005,-495.48372114,0.00027397,2]
[322242188,1712911839019,-500.0,0.00027397,2]
[322242191,1712911839032,-502.60418016,0.00027397,2]
[322242194,1712911839043,-500.0,0.00027397,2]
[322242197,1712911839053,-500.0,0.00027397,2]
[322242200,1712911839064,-568.52722949,0.00027397,2]
[322242203,1712911839073,-285.64927331,0.00027397,2]
[322242206,1712911839083,-500.0,0.00027397,2]
[322242209,1712911839093,-500.0,0.00027397,2]
[322242212,1712911839103,-500.0,0.00027397,2]
[322242214,1712911839112,-500.0,0.00027397,2]
[322242217,1712911839122,-500.0,0.00027397,2]
[322242220,1712911839132,-509.61188412,0.00027397,2]
[322242223,1712911839140,-500.0,0.00027397,2]
[322242226,1712911839150,-500.0,0.00027397,2]
[322242229,1712911839160,-500.0,0.00027397,2]
[322242232,1712911839170,-500.0,0.00027397,2]
[322242235,1712911839180,-500.0,0.00027397,2]
[322242237,1712911839190,-500.0,0.00027397,2]
[322242239,1712911839199,-500.0,0.00027397,2]
[322242241,1712911839209,-505.16068073,0.00027397,2]
[322242243,1712911839219,-500.0,0.00027397,2]
[322242245,1712911839228,-510.89246461,0.00027397,2]
[322242247,1712911839241,-516.01841768,0.00027397,2]
[322242250,1712911839251,-500.0,0.00027397,2]
[322242253,1712911839262,-366.60543958,0.00027397,2]
[322242257,1712911839278,-133.39456042,0.00027397,2]
[322242260,1712911839287,-500.0,0.00027397,2]
[322242263,1712911839297,-500.0,0.00027397,2]
[322242265,1712911839307,-126.94632027,0.00027397,2]
[322242268,1712911839319,-373.05367973,0.00027397,2]
[322242269,1712911839329,-297.39632027,0.00027397,2]
[322242272,1712911839341,-212.50472061,0.00027397,2]
[322242274,1712911839351,-506.24338443,0.00027397,2]
[322242276,1712911839360,-500.0,0.00027397,2]
[322242278,1712911839369,-500.0,0.00027397,2]
[322242280,1712911839378,-500.0,0.00027397,2]
[322242282,1712911839387,-500.0,0.00027397,2]
[322242284,1712911839397,-500.0,0.00027397,2]
[322242286,1712911839407,-500.0,0.00027397,2]
[322242288,1712911839415,-500.0,0.00027397,2]
[322242290,1712911839425,-500.34390821,0.00027397,2]
[322242292,1712911839434,-500.0,0.00027397,2]
[322242294,1712911839444,-500.0,0.00027397,2]
[322242296,1712911839453,-456.66250328,0.00027397,2]